[Event "GrandPrix_29.05"]
[Site "Chess.com"]
[Date "2020.05.29"]
[Round "4"]
[White "sergoy"]
[Black "kotmizer"]
[Result "1-0"]
[WhiteElo "2458"]
[BlackElo "2120"]
[TimeControl "600+2"]
[EndTime "10:53:53 PDT"]
[Termination "sergoy won by resignation"]

1. d4 {[%clk 0:10:00.6]} 1... Nf6 {[%clk 0:10:00.1]} 2. c4 {[%clk 0:10:01.5]}
2... c5 {[%clk 0:10:01]} 3. d5 {[%clk 0:10:02.4]} 3... e6 {[%clk 0:10:01.4]} 4.
Nc3 {[%clk 0:10:03]} 4... exd5 {[%clk 0:10:02.5]} 5. cxd5 {[%clk 0:10:04]} 5...
d6 {[%clk 0:10:03.6]} 6. Nf3 {[%clk 0:10:05]} 6... g6 {[%clk 0:10:04]} 7. Bf4
{[%clk 0:10:05.7]} 7... Bg7 {[%clk 0:10:01.1]} 8. Qa4+ {[%clk 0:10:05.7]} 8...
Bd7 {[%clk 0:10:01.8]} 9. Qb3 {[%clk 0:10:06.6]} 9... Qc7 {[%clk 0:10:02.8]} 10.
e4 {[%clk 0:10:04.4]} 10... O-O {[%clk 0:10:03.4]} 11. Nd2 {[%clk 0:10:04]}
11... Nh5 {[%clk 0:10:00.7]} 12. Be3 {[%clk 0:10:04.6]} 12... f5 {[%clk
0:10:01.5]} 13. exf5 {[%clk 0:10:05.6]} 13... Bxf5 {[%clk 0:10:01.2]} 14. Be2
{[%clk 0:10:04.6]} 14... Nf6 {[%clk 0:10:02]} 15. O-O {[%clk 0:10:04.9]} 15...
Na6 {[%clk 0:09:43]} 16. a3 {[%clk 0:09:57.1]} 16... Ng4 {[%clk 0:09:35.2]} 17.
Bxg4 {[%clk 0:09:52]} 17... Bxg4 {[%clk 0:09:35.6]} 18. Nc4 {[%clk 0:09:52.9]}
18... Qd7 {[%clk 0:09:19]} 19. Rfe1 {[%clk 0:09:44.9]} 19... Rf7 {[%clk
0:08:19.8]} 20. Ne4 {[%clk 0:09:43]} 20... Bf8 {[%clk 0:07:52.2]} 21. Bg5 {[%clk
0:09:35]} 21... b5 {[%clk 0:07:31.5]} 22. Ne3 {[%clk 0:09:35.8]} 22... Bf5
{[%clk 0:05:34.7]} 23. Nf6+ {[%clk 0:09:27.8]} 23... Rxf6 {[%clk 0:05:34.9]} 24.
Bxf6 {[%clk 0:09:29.7]} 24... c4 {[%clk 0:05:35.8]} 25. Qc3 {[%clk 0:08:56.9]}
25... Nc5 {[%clk 0:05:36.1]} 26. Bd4 {[%clk 0:08:54]} 26... Nb3 {[%clk
0:04:10.7]} 27. Rad1 {[%clk 0:08:53.5]} 27... Qf7 {[%clk 0:04:10.1]} 28. Nxf5
{[%clk 0:08:41.5]} 28... Qxf5 {[%clk 0:04:10.2]} 29. Qg3 {[%clk 0:08:20.1]}
29... a5 {[%clk 0:03:44.7]} 30. h4 {[%clk 0:08:10.9]} 30... b4 {[%clk
0:03:44.9]} 31. a4 {[%clk 0:07:54]} 31... Rc8 {[%clk 0:03:33.6]} 32. Re3 {[%clk
0:07:17.2]} 32... Qxd5 {[%clk 0:03:07.4]} 33. Qg4 {[%clk 0:05:37.2]} 33... Qf5
{[%clk 0:03:03.7]} 34. Qe2 {[%clk 0:05:37.3]} 34... Qf7 {[%clk 0:02:50.7]} 35.
Rf3 {[%clk 0:05:32.4]} 35... Re8 {[%clk 0:02:35.1]} 36. Qc2 {[%clk 0:05:32.8]}
36... Qe6 {[%clk 0:02:05]} 37. Re3 {[%clk 0:05:30.7]} 37... Qf7 {[%clk
0:01:58.1]} 38. Rxe8 {[%clk 0:05:29.2]} 38... Qxe8 {[%clk 0:01:59.7]} 39. Qxc4+
{[%clk 0:05:30]} 39... Qf7 {[%clk 0:02:01.4]} 40. Qxf7+ {[%clk 0:05:26.7]} 40...
Kxf7 {[%clk 0:02:02]} 41. Bb6 {[%clk 0:05:23.8]} 41... Bg7 {[%clk 0:01:59.7]}
42. Rd3 {[%clk 0:05:23.8]} 42... Nc1 {[%clk 0:01:56.4]} 43. Rxd6 {[%clk
0:05:18.2]} 43... Bxb2 {[%clk 0:01:55.2]} 44. Bxa5 {[%clk 0:05:19]} 44... b3
{[%clk 0:01:46.8]} 45. Bd2 {[%clk 0:05:19.5]} 45... Ne2+ {[%clk 0:01:46.7]} 46.
Kf1 {[%clk 0:05:20]} 46... Nd4 {[%clk 0:01:47.3]} 47. a5 {[%clk 0:05:18.8]} 1-0

[Event "GrandPrix_29.05"]
[Site "Chess.com"]
[Date "2020.05.29"]
[Round "4"]
[White "Sam_ChessMood"]
[Black "RitvarsReimanis"]
[Result "1-0"]
[WhiteElo "2415"]
[BlackElo "2095"]
[TimeControl "600+2"]
[EndTime "10:54:01 PDT"]
[Termination "Sam_ChessMood won by resignation"]

1. e4 {[%clk 0:10:01.9]} 1... c5 {[%clk 0:10:00.2]} 2. Nf3 {[%clk 0:10:02]} 2...
Nc6 {[%clk 0:10:01.5]} 3. d4 {[%clk 0:09:57.7]} 3... cxd4 {[%clk 0:10:03.4]} 4.
Nxd4 {[%clk 0:09:59.3]} 4... Nf6 {[%clk 0:10:05]} 5. Nc3 {[%clk 0:10:00.2]} 5...
e5 {[%clk 0:10:05.7]} 6. Ndb5 {[%clk 0:10:01.4]} 6... d6 {[%clk 0:10:06.1]} 7.
Nd5 {[%clk 0:10:02.3]} 7... Nxd5 {[%clk 0:10:05.5]} 8. exd5 {[%clk 0:10:04.2]}
8... Ne7 {[%clk 0:10:06.8]} 9. c4 {[%clk 0:09:56.3]} 9... Ng6 {[%clk 0:10:06.5]}
10. Qa4 {[%clk 0:09:41.4]} 10... Bd7 {[%clk 0:10:02.2]} 11. Qb4 {[%clk 0:09:42]}
11... Qb8 {[%clk 0:10:02.5]} 12. h4 {[%clk 0:08:12.7]} 12... a6 {[%clk
0:10:02.2]} 13. h5 {[%clk 0:07:59.4]} 13... axb5 {[%clk 0:09:47.1]} 14. hxg6
{[%clk 0:08:00]} 14... fxg6 {[%clk 0:09:43.2]} 15. cxb5 {[%clk 0:07:36.6]} 15...
Be7 {[%clk 0:09:15.9]} 16. Be2 {[%clk 0:07:24.2]} 16... O-O {[%clk 0:09:10.8]}
17. Be3 {[%clk 0:06:49.6]} 17... Qe8 {[%clk 0:07:38.7]} 18. a4 {[%clk
0:06:29.8]} 18... Qf7 {[%clk 0:07:18.8]} 19. O-O {[%clk 0:06:21.7]} 19... Rfc8
{[%clk 0:05:51.3]} 20. Rac1 {[%clk 0:05:57.2]} 20... Qf6 {[%clk 0:04:21]} 21. a5
{[%clk 0:05:33]} 21... Rcb8 {[%clk 0:03:03]} 22. b6 {[%clk 0:05:00.7]} 22... e4
{[%clk 0:02:18.5]} 23. Rc7 {[%clk 0:04:40.5]} 23... Bf5 {[%clk 0:00:55.7]} 24.
Rfc1 {[%clk 0:04:35.2]} 24... Bd8 {[%clk 0:00:53.8]} 25. Bd4 {[%clk 0:04:26.1]}
25... Qg5 {[%clk 0:00:48.9]} 26. Rxg7+ {[%clk 0:04:25.1]} 1-0

[Event "GrandPrix_29.05"]
[Site "Chess.com"]
[Date "2020.05.29"]
[Round "4"]
[White "Gordima"]
[Black "Dyadya81"]
[Result "1-0"]
[WhiteElo "2338"]
[BlackElo "2279"]
[TimeControl "600+2"]
[EndTime "10:54:02 PDT"]
[Termination "Gordima won by resignation"]

1. d4 {[%clk 0:10:01.9]} 1... Nf6 {[%clk 0:09:59.3]} 2. c4 {[%clk 0:10:02.9]}
2... g6 {[%clk 0:10:00.1]} 3. Nc3 {[%clk 0:10:03.8]} 3... Bg7 {[%clk 0:10:00.8]}
4. e4 {[%clk 0:10:05.1]} 4... d6 {[%clk 0:10:02.1]} 5. Nf3 {[%clk 0:10:04.7]}
5... O-O {[%clk 0:10:03.5]} 6. h3 {[%clk 0:10:05.7]} 6... e5 {[%clk 0:10:04.7]}
7. d5 {[%clk 0:10:06.7]} 7... Nh5 {[%clk 0:10:06.1]} 8. g3 {[%clk 0:10:07.7]}
8... f5 {[%clk 0:10:06.1]} 9. exf5 {[%clk 0:10:07.9]} 9... gxf5 {[%clk 0:10:08]}
10. Nh4 {[%clk 0:09:59.9]} 10... Nf6 {[%clk 0:10:04.4]} 11. Bg5 {[%clk
0:09:55.3]} 11... Na6 {[%clk 0:09:58.1]} 12. Bd3 {[%clk 0:09:54.2]} 12... e4
{[%clk 0:09:56.3]} 13. Be2 {[%clk 0:09:54.8]} 13... c6 {[%clk 0:09:45.1]} 14.
Qd2 {[%clk 0:09:43.1]} 14... cxd5 {[%clk 0:09:23]} 15. Nxd5 {[%clk 0:09:37.8]}
15... Nc5 {[%clk 0:09:23.5]} 16. Rd1 {[%clk 0:09:28.3]} 16... Be6 {[%clk
0:08:59.7]} 17. Nf4 {[%clk 0:09:18.2]} 17... Qe8 {[%clk 0:08:20]} 18. Qxd6
{[%clk 0:09:00.9]} 18... Rc8 {[%clk 0:08:20.2]} 19. O-O {[%clk 0:07:37.7]} 19...
e3 {[%clk 0:08:18.6]} 20. Nxe6 {[%clk 0:07:07.7]} 20... exf2+ {[%clk 0:07:54.5]}
21. Rxf2 {[%clk 0:07:03.3]} 21... Nxe6 {[%clk 0:07:54.8]} 22. Bxf6 {[%clk
0:06:55]} 22... Rxf6 {[%clk 0:07:46.8]} 23. Nxf5 {[%clk 0:06:21.9]} 23... Bf8
{[%clk 0:07:31.5]} 24. Qe5 {[%clk 0:06:15.2]} 24... Rg6 {[%clk 0:07:22.9]} 25.
Bh5 {[%clk 0:06:02.5]} 25... Bc5 {[%clk 0:07:05.3]} 26. Bxg6 {[%clk 0:04:42.6]}
26... hxg6 {[%clk 0:06:44.3]} 27. Nd6 {[%clk 0:04:01.2]} 27... Qd7 {[%clk
0:06:26.6]} 28. Kg2 {[%clk 0:02:24.9]} 28... Bxf2 {[%clk 0:05:22.4]} 29. Nxc8
{[%clk 0:02:23.8]} 29... Qxd1 {[%clk 0:05:15.5]} 30. Qxe6+ {[%clk 0:02:24.5]}
30... Kg7 {[%clk 0:05:16.3]} 31. Qe5+ {[%clk 0:01:59.5]} 31... Kh7 {[%clk
0:05:09.9]} 32. Kxf2 {[%clk 0:01:00.8]} 32... Qd2+ {[%clk 0:05:10.7]} 33. Qe2
{[%clk 0:00:56.8]} 33... Qd4+ {[%clk 0:05:05.1]} 34. Kg2 {[%clk 0:00:56]} 34...
Kh6 {[%clk 0:05:00.8]} 35. Ne7 {[%clk 0:00:53.5]} 35... a6 {[%clk 0:04:57.6]}
36. Nd5 {[%clk 0:00:49.6]} 1-0

[Event "GrandPrix_29.05"]
[Site "Chess.com"]
[Date "2020.05.29"]
[Round "4"]
[White "vagpat"]
[Black "khekhm"]
[Result "0-1"]
[WhiteElo "2204"]
[BlackElo "2479"]
[TimeControl "600+2"]
[EndTime "10:54:20 PDT"]
[Termination "khekhm won by resignation"]

1. e4 {[%clk 0:10:01.9]} 1... c5 {[%clk 0:09:43.5]} 2. Nf3 {[%clk 0:10:00.9]}
2... Nf6 {[%clk 0:09:35.9]} 3. e5 {[%clk 0:09:58.4]} 3... Nd5 {[%clk 0:09:35.8]}
4. Nc3 {[%clk 0:09:59.5]} 4... e6 {[%clk 0:09:24.4]} 5. Ne4 {[%clk 0:10:00]}
5... f5 {[%clk 0:09:24.9]} 6. Nc3 {[%clk 0:10:00.6]} 6... Nc6 {[%clk 0:09:26.1]}
7. Nxd5 {[%clk 0:09:18.1]} 7... exd5 {[%clk 0:09:28]} 8. d4 {[%clk 0:09:09.1]}
8... d6 {[%clk 0:09:29.1]} 9. exd6 {[%clk 0:08:10.9]} 9... Bxd6 {[%clk 0:09:31]}
10. dxc5 {[%clk 0:08:11.6]} 10... Bxc5 {[%clk 0:09:32.9]} 11. Be2 {[%clk
0:08:12.7]} 11... O-O {[%clk 0:09:33.1]} 12. O-O {[%clk 0:08:12.5]} 12... f4
{[%clk 0:09:34.4]} 13. c3 {[%clk 0:08:03.2]} 13... Be6 {[%clk 0:09:07.6]} 14.
Qa4 {[%clk 0:07:19.7]} 14... a6 {[%clk 0:08:50]} 15. b4 {[%clk 0:06:46.6]} 15...
Bb6 {[%clk 0:08:32.5]} 16. Rd1 {[%clk 0:06:29.9]} 16... Qf6 {[%clk 0:08:31.2]}
17. Bb2 {[%clk 0:06:28.9]} 17... Rfe8 {[%clk 0:08:17]} 18. b5 {[%clk 0:05:33.4]}
18... Na5 {[%clk 0:07:42.8]} 19. bxa6 {[%clk 0:05:11.4]} 19... bxa6 {[%clk
0:07:44.7]} 20. Nd4 {[%clk 0:04:44.9]} 20... Bf7 {[%clk 0:07:40.8]} 21. Bf1
{[%clk 0:04:19.1]} 21... Nc4 {[%clk 0:07:31.3]} 22. Bxc4 {[%clk 0:03:53.6]}
22... dxc4 {[%clk 0:07:33.2]} 23. Re1 {[%clk 0:03:48.6]} 23... h6 {[%clk
0:07:13.7]} 24. Rad1 {[%clk 0:03:14.9]} 24... Rac8 {[%clk 0:06:39.3]} 25. Ba3
{[%clk 0:02:34.6]} 25... f3 {[%clk 0:06:18.5]} 26. g3 {[%clk 0:02:31.3]} 26...
Bxd4 {[%clk 0:05:41.9]} 27. cxd4 {[%clk 0:02:33.2]} 27... Qf5 {[%clk 0:05:42.3]}
28. Rxe8+ {[%clk 0:01:56.6]} 28... Rxe8 {[%clk 0:05:42.1]} 29. Qc6 {[%clk
0:01:44.7]} 29... Re2 {[%clk 0:05:22.8]} 30. Qa8+ {[%clk 0:00:43.6]} 30... Kh7
{[%clk 0:05:21.6]} 31. Bf8 {[%clk 0:00:29.5]} 31... Bd5 {[%clk 0:05:07.7]} 32.
Qc8 {[%clk 0:00:16.9]} 32... Qxc8 {[%clk 0:05:05.4]} 0-1

[Event "GrandPrix_29.05"]
[Site "Chess.com"]
[Date "2020.05.29"]
[Round "4"]
[White "DenLaz"]
[Black "Grandelicious"]
[Result "1-0"]
[WhiteElo "2764"]
[BlackElo "2682"]
[TimeControl "600+2"]
[EndTime "10:54:34 PDT"]
[Termination "DenLaz won by resignation"]

1. d4 {[%clk 0:10:00.3]} 1... d5 {[%clk 0:10:00.5]} 2. c4 {[%clk 0:10:00.4]}
2... e6 {[%clk 0:10:02.1]} 3. Nf3 {[%clk 0:10:00.7]} 3... a6 {[%clk 0:10:03.3]}
4. cxd5 {[%clk 0:09:59.6]} 4... exd5 {[%clk 0:10:05.2]} 5. Nc3 {[%clk
0:10:00.9]} 5... h6 {[%clk 0:10:06.3]} 6. Bf4 {[%clk 0:09:55.1]} 6... Nf6 {[%clk
0:10:06.9]} 7. e3 {[%clk 0:09:54.3]} 7... Bd6 {[%clk 0:10:08.4]} 8. Bxd6 {[%clk
0:09:42.9]} 8... Qxd6 {[%clk 0:10:10.3]} 9. Bd3 {[%clk 0:09:42.5]} 9... O-O
{[%clk 0:10:09.1]} 10. h3 {[%clk 0:09:31.7]} 10... Be6 {[%clk 0:09:59.6]} 11.
O-O {[%clk 0:09:27.7]} 11... Nbd7 {[%clk 0:10:00.3]} 12. Qc2 {[%clk 0:09:22.6]}
12... c6 {[%clk 0:09:55.7]} 13. Rab1 {[%clk 0:09:06.6]} 13... Rfe8 {[%clk
0:09:45.5]} 14. Rfc1 {[%clk 0:09:05.4]} 14... Nb6 {[%clk 0:09:27.2]} 15. Nd2
{[%clk 0:08:48.7]} 15... Qe7 {[%clk 0:08:51.7]} 16. Nb3 {[%clk 0:08:27.7]} 16...
Nc8 {[%clk 0:08:51.3]} 17. Nc5 {[%clk 0:08:22.4]} 17... Nd6 {[%clk 0:08:52.4]}
18. Ne2 {[%clk 0:08:19.8]} 18... g6 {[%clk 0:08:33.5]} 19. Nf4 {[%clk
0:07:37.7]} 19... Bf5 {[%clk 0:08:31.7]} 20. Bxf5 {[%clk 0:07:38.6]} 20... Nxf5
{[%clk 0:08:33.6]} 21. Nfd3 {[%clk 0:07:39.8]} 21... Nd7 {[%clk 0:07:01]} 22.
Nxb7 {[%clk 0:07:29.9]} 22... Qg5 {[%clk 0:06:54.5]} 23. Qxc6 {[%clk 0:07:19.4]}
23... Nf6 {[%clk 0:06:22.3]} 24. Nd6 {[%clk 0:06:54.9]} 24... Nh4 {[%clk
0:06:03.6]} 25. Ne1 {[%clk 0:06:50.6]} 25... Red8 {[%clk 0:05:46.3]} 26. Qb7
{[%clk 0:06:32.4]} 26... Nd7 {[%clk 0:05:14.5]} 27. Rc7 {[%clk 0:05:01.1]} 27...
Rab8 {[%clk 0:04:30.2]} 28. Qxa6 {[%clk 0:05:00.1]} 28... Rb6 {[%clk 0:04:16]}
29. Qa3 {[%clk 0:05:00.5]} 29... Qe7 {[%clk 0:03:38.5]} 30. Nc4 {[%clk 0:04:55]}
30... Qe4 {[%clk 0:03:38.8]} 31. Nd2 {[%clk 0:04:35.3]} 31... Qe6 {[%clk
0:03:27.4]} 32. Rbc1 {[%clk 0:04:26.1]} 32... Kg7 {[%clk 0:03:15.5]} 33. Ndf3
{[%clk 0:04:20.6]} 33... Nf5 {[%clk 0:03:14]} 34. Nd3 {[%clk 0:04:15]} 34... Ra6
{[%clk 0:02:22.2]} 35. Qb3 {[%clk 0:03:59.6]} 35... Rb8 {[%clk 0:02:15.9]} 36.
Qc3 {[%clk 0:03:58.3]} 36... Rxa2 {[%clk 0:02:13.1]} 37. Nf4 {[%clk 0:03:59.4]}
37... Qd6 {[%clk 0:02:13.8]} 38. Ne5 {[%clk 0:03:56.2]} 38... Nxe5 {[%clk
0:01:48.2]} 39. dxe5 {[%clk 0:03:55.2]} 39... d4 {[%clk 0:01:50.1]} 40. exd4
{[%clk 0:03:53.5]} 1-0

[Event "GrandPrix_29.05"]
[Site "Chess.com"]
[Date "2020.05.29"]
[Round "4"]
[White "Aliakbarov_Anar"]
[Black "Mugzyyy"]
[Result "1/2-1/2"]
[WhiteElo "2130"]
[BlackElo "2541"]
[TimeControl "600+2"]
[EndTime "10:54:44 PDT"]
[Termination "Game drawn by repetition"]

1. d4 {[%clk 0:10:01.9]} 1... Nf6 {[%clk 0:09:40.8]} 2. c4 {[%clk 0:10:02.2]}
2... e6 {[%clk 0:09:39.6]} 3. Nc3 {[%clk 0:09:53.6]} 3... c5 {[%clk 0:09:39.9]}
4. d5 {[%clk 0:09:51.3]} 4... exd5 {[%clk 0:09:41.8]} 5. cxd5 {[%clk 0:09:53.2]}
5... d6 {[%clk 0:09:43.3]} 6. Nf3 {[%clk 0:09:38.6]} 6... g6 {[%clk 0:09:45.2]}
7. Bf4 {[%clk 0:09:38.3]} 7... Bg7 {[%clk 0:09:47.1]} 8. Qa4+ {[%clk 0:09:35.4]}
8... Bd7 {[%clk 0:09:41.1]} 9. Qb3 {[%clk 0:09:34.5]} 9... b5 {[%clk 0:09:42]}
10. Nxb5 {[%clk 0:09:24.3]} 10... Qa5+ {[%clk 0:09:33.8]} 11. Nc3 {[%clk
0:09:23.7]} 11... Ne4 {[%clk 0:09:32.6]} 12. Bd2 {[%clk 0:09:09.9]} 12... Nxd2
{[%clk 0:09:33.6]} 13. Nxd2 {[%clk 0:09:09.3]} 13... O-O {[%clk 0:09:34.3]} 14.
e3 {[%clk 0:09:04.9]} 14... Na6 {[%clk 0:09:32.3]} 15. Nc4 {[%clk 0:08:49.9]}
15... Qc7 {[%clk 0:09:33.2]} 16. a3 {[%clk 0:08:47.1]} 16... Rab8 {[%clk
0:09:32.5]} 17. Qc2 {[%clk 0:08:47.5]} 17... f5 {[%clk 0:09:14]} 18. Be2 {[%clk
0:08:00.5]} 18... f4 {[%clk 0:09:14.9]} 19. O-O {[%clk 0:08:01.3]} 19... fxe3
{[%clk 0:09:14.4]} 20. Nxe3 {[%clk 0:08:00.8]} 20... Qb7 {[%clk 0:09:04.5]} 21.
Rab1 {[%clk 0:07:33.3]} 21... Nc7 {[%clk 0:08:55.1]} 22. b4 {[%clk 0:04:49.9]}
22... cxb4 {[%clk 0:08:44.6]} 23. Rxb4 {[%clk 0:04:49.1]} 23... Qc8 {[%clk
0:08:45.9]} 24. Ne4 {[%clk 0:04:04.2]} 24... Rxb4 {[%clk 0:08:32]} 25. axb4
{[%clk 0:04:04.9]} 25... Qb8 {[%clk 0:07:57.7]} 26. Nxd6 {[%clk 0:04:00.3]}
26... Nxd5 {[%clk 0:07:54.8]} 27. Nxd5 {[%clk 0:03:36.6]} 27... Qxd6 {[%clk
0:07:55.6]} 28. Qc5 {[%clk 0:03:33.9]} 28... Qe5 {[%clk 0:07:42.5]} 29. Ne7+
{[%clk 0:03:16.2]} 29... Kf7 {[%clk 0:07:38.6]} 30. Bc4+ {[%clk 0:03:14.8]}
30... Be6 {[%clk 0:07:28]} 31. Bxe6+ {[%clk 0:03:13.3]} 31... Kxe6 {[%clk
0:07:25.1]} 32. Qxe5+ {[%clk 0:02:54.1]} 32... Bxe5 {[%clk 0:07:27]} 33. Nc6
{[%clk 0:02:55.5]} 33... Bd6 {[%clk 0:07:27.1]} 34. Nxa7 {[%clk 0:02:48.7]}
34... Bxb4 {[%clk 0:07:26.2]} 35. Nb5 {[%clk 0:02:44.6]} 35... Bc5 {[%clk
0:07:24.9]} 36. Nc3 {[%clk 0:02:45.3]} 36... Bd4 {[%clk 0:07:15.5]} 37. Ne2
{[%clk 0:02:45.7]} 37... Ba7 {[%clk 0:07:13.9]} 38. g3 {[%clk 0:02:46.7]} 38...
g5 {[%clk 0:07:14.4]} 39. Kg2 {[%clk 0:02:47.6]} 39... Rb8 {[%clk 0:06:59.6]}
40. Re1 {[%clk 0:02:36.2]} 40... Rb2 {[%clk 0:06:56]} 41. Nc3+ {[%clk 0:02:28]}
41... Kf5 {[%clk 0:06:56.6]} 42. Re2 {[%clk 0:02:25.8]} 42... Rxe2 {[%clk
0:06:46.6]} 43. Nxe2 {[%clk 0:02:27.7]} 43... h5 {[%clk 0:06:48.2]} 44. h3
{[%clk 0:02:23.5]} 44... g4 {[%clk 0:06:46.8]} 45. h4 {[%clk 0:02:24.5]} 45...
Bb8 {[%clk 0:06:44.8]} 46. Nd4+ {[%clk 0:02:25]} 46... Kg6 {[%clk 0:06:44]} 47.
Nc6 {[%clk 0:02:24.9]} 47... Bd6 {[%clk 0:06:44.3]} 48. Kf1 {[%clk 0:02:23.4]}
48... Bc5 {[%clk 0:06:42.6]} 49. Ne5+ {[%clk 0:02:23.3]} 49... Kf5 {[%clk
0:06:42.2]} 50. Nd3 {[%clk 0:02:23.9]} 50... Bd6 {[%clk 0:06:43.4]} 51. Ke2
{[%clk 0:02:24]} 51... Bc7 {[%clk 0:06:44.8]} 52. Ne1 {[%clk 0:02:19.7]} 52...
Ke4 {[%clk 0:06:44]} 53. Ng2 {[%clk 0:02:20.4]} 53... Bd6 {[%clk 0:06:43]} 54.
Ne3 {[%clk 0:02:20.9]} 54... Bc7 {[%clk 0:06:39.1]} 55. Nc4 {[%clk 0:02:21.7]}
55... Kd4 {[%clk 0:06:28.3]} 56. Nd2 {[%clk 0:02:13.9]} 56... Bd6 {[%clk
0:06:28.3]} 57. Nf1 {[%clk 0:01:42.2]} 57... Ke4 {[%clk 0:06:28]} 58. Ne3 {[%clk
0:01:41.9]} 58... Bc7 {[%clk 0:06:26]} 59. Nc4 {[%clk 0:01:27.6]} 59... Kd4
{[%clk 0:06:26]} 60. Nb2 {[%clk 0:01:20.5]} 60... Ke4 {[%clk 0:06:24.4]} 61. Nd1
{[%clk 0:00:52.9]} 61... Be5 {[%clk 0:06:22]} 62. Ne3 {[%clk 0:00:47.7]} 62...
Bc7 {[%clk 0:06:20.4]} 1/2-1/2

[Event "GrandPrix_29.05"]
[Site "Chess.com"]
[Date "2020.05.29"]
[Round "4"]
[White "Natalya_Buksa"]
[Black "swisspower96"]
[Result "0-1"]
[WhiteElo "2123"]
[BlackElo "2155"]
[TimeControl "600+2"]
[EndTime "10:54:56 PDT"]
[Termination "swisspower96 won by resignation"]

1. d4 {[%clk 0:09:59.2]} 1... Nf6 {[%clk 0:09:59.2]} 2. Nc3 {[%clk 0:09:58.1]}
2... d5 {[%clk 0:09:56.2]} 3. Bf4 {[%clk 0:09:57.6]} 3... e6 {[%clk 0:09:49.4]}
4. e3 {[%clk 0:09:57.3]} 4... Be7 {[%clk 0:09:43.9]} 5. Nf3 {[%clk 0:09:51.4]}
5... O-O {[%clk 0:09:44.6]} 6. Bd3 {[%clk 0:09:52.2]} 6... c5 {[%clk 0:09:15.9]}
7. O-O {[%clk 0:09:34.9]} 7... Nc6 {[%clk 0:08:59.3]} 8. dxc5 {[%clk 0:09:34.2]}
8... Bxc5 {[%clk 0:08:50.2]} 9. e4 {[%clk 0:09:35.4]} 9... dxe4 {[%clk
0:08:06.2]} 10. Nxe4 {[%clk 0:09:34.2]} 10... Be7 {[%clk 0:08:07.5]} 11. c4
{[%clk 0:09:18.8]} 11... b6 {[%clk 0:08:01.8]} 12. a3 {[%clk 0:09:10.3]} 12...
Bb7 {[%clk 0:07:56.7]} 13. Qc2 {[%clk 0:09:03.1]} 13... Nh5 {[%clk 0:07:40.6]}
14. Be3 {[%clk 0:08:20.1]} 14... Qc7 {[%clk 0:07:37.6]} 15. Neg5 {[%clk
0:07:29.8]} 15... g6 {[%clk 0:06:33.5]} 16. Rad1 {[%clk 0:06:55.6]} 16... Rae8
{[%clk 0:06:32.8]} 17. Bd2 {[%clk 0:06:22.5]} 17... Nf4 {[%clk 0:05:11.9]} 18.
Bc3 {[%clk 0:06:15.9]} 18... Bxg5 {[%clk 0:03:49.6]} 19. Nxg5 {[%clk 0:06:11]}
19... Nxg2 {[%clk 0:03:50.8]} 20. Ne4 {[%clk 0:04:38.7]} 20... f5 {[%clk
0:03:26.5]} 21. Nf6+ {[%clk 0:04:37.7]} 21... Rxf6 {[%clk 0:03:25.1]} 22. Bxf6
{[%clk 0:04:39.6]} 22... Ne5 {[%clk 0:02:52.8]} 23. Be2 {[%clk 0:04:13.6]} 23...
Nf3+ {[%clk 0:02:35.5]} 24. Bxf3 {[%clk 0:04:01.5]} 24... Bxf3 {[%clk
0:02:36.1]} 25. Qd2 {[%clk 0:03:27.2]} 25... Nf4 {[%clk 0:02:29.9]} 26. Rfe1
{[%clk 0:01:50.2]} 26... Nh3+ {[%clk 0:02:29.5]} 27. Kf1 {[%clk 0:01:51.6]}
27... Qxh2 {[%clk 0:02:31]} 0-1